[Event "Spring Chess Classic A 2024"]
[Site "Saint Louis"]
[Date "2024.04.11"]
[Round "1.1"]
[White "Mishra, Abhimanyu"]
[Black "Mendonca, Leon Luke"]
[Result "1/2-1/2"]
[ECO "C07"]
[WhiteElo "2626"]
[BlackElo "2626"]
[Annotator "TA"]
[PlyCount "113"]
[EventDate "2024.04.11"]
[EventCountry "USA"]
[SourceTitle "playchess.com"]
[Source "ChessBase"]
[SourceQuality "1"]
[TimeControl "7200+30"]

{[%evp 11,113,8,4,12,14,19,13,15,17,4,15,26,12,3,26,18,40,20,54,65,79,70,75,72,82,56,48,18,39,50,38,-15,0,0,0,0,0,0,0,-18,-14,-11,-15,-33,-7,-8,0,-34,-34,-34,-31,-31,-25,-53,-24,-12,-16,-23,0,-17,0,0,0,0,0,0,0,0,0,0,0,0,0,0,0,0,0,0,0,0,0,0,0,0,0,0,0,0,0,0,0,0,0,0,0,0,0,0,0,0,0,0,0,0]} 1. e4 {[%emt 0:00:02]} e6 {[%emt 0:01:04]} 2. d4 {[%emt 0:00:09]} d5 {[%emt 0:00:05]} 3. Nd2 {[%emt 0:00:11]} c5 {[%emt 0:00:25]} 4. Ngf3 {[%emt 0:00:46]} cxd4 {[%emt 0:00:21]} 5. Nxd4 {[%emt 0:00:16]} Nf6 {[%emt 0:00:42][%cal Bg8f6,Bf6d5,Bd5b4][%mdl 32]} 6. exd5 {[%emt 0:00:35]} Nxd5 {[%emt 0:00:33]} 7. Bd3 {[%emt 0:00:52]} Nb4 {[%emt 0:04:13]} 8. Bb5+ {[%emt 0:02:36]} Bd7 {[%emt 0:00:30]} 9. a3 {[%emt 0:02:54]} Nd5 {[%emt 0:13:15]} 10. c4 {[%emt 0:05:55]} Nf6 {[%emt 0:07:30]} 11. N2f3 {[%emt 0:09:46]} Be7 {[%emt 0:08:45]} 12. O-O {[%emt 0:04:40]} O-O {[%emt 0:00:48]} 13. Bf4 {[%emt 0:05:39]} Nc6 {[%emt 0:07:43]} 14. Nxc6 {[%emt 0:09:38]} bxc6 {[%emt 0:03:41]} 15. Ba4 {[%emt 0:00:15]} Qb6 {[%emt 0:03:04]} 16. Ne5 {[%emt 0:07:04]} Rfd8 {[%emt 0:26:34]} 17. Qf3 {[%emt 0:04:56]} Rac8 {[%emt 0:02:57]} 18. Rfd1 {[%emt 0:15:41] White is more active.} Be8 {[%emt 0:00:54]} 19. b4 {[%emt 0:08:27]} a5 {[%emt 0:04:58]} 20. Rxd8 {[%emt 0:04:35]} Bxd8 {[%emt 0:01:26]} 21. bxa5 {[%emt 0:04:38]} (21. Rb1 $14) 21... Qxa5 $11 {[%emt 0:08:28]} 22. Bxc6 {[%emt 0:08:06]} (22. Nxc6 $2 {is the wrong capture.} Qxa4 23. Nxd8 Rxd8 $19) 22... Bc7 {[%emt 0:00:15]} 23. Bb5 $1 {[%emt 0:01:43]} Bxb5 {[%emt 0:00:19]} 24. cxb5 {[%emt 0:00:06]} Qxb5 {[%emt 0:00:39]} 25. Rc1 {[%emt 0:02:33][%cal Oe5f7]} Nd5 {[%emt 0:04:10] [#] White must now prevent ...Nxf4.} 26. Bg3 {[%emt 0:02:39]} Rf8 {[%emt 0:01:44]} 27. h3 {[%emt 0:01:41]} (27. Qd3 {keeps more tension.} Qb2 28. Rb1 Qc3 29. Rb3) 27... h6 {[%emt 0:02:22]} 28. Kh2 {[%emt 0:05:58]} Bd6 {[%emt 0:09:17]} 29. Nc4 {[%emt 0:01:57] Repels Qb2} Be7 {[%emt 0:03:42]} 30. Ne5 {[%emt 0:00:50]} Qa6 {[%emt 0:02:06]} 31. Ra1 {[%emt 0:04:23]} Qa4 {[%emt 0:00:06]} 32. Ra2 {[%emt 0:01:05]} Bf6 {[%emt 0:02:21][%cal Oh6h5]} 33. Rb2 {[%emt 0:01:49]} Qd4 {[%emt 0:01:58][%csl LRb2,LRe5]} 34. Re2 {[%emt 0:00:48]} Ra8 {[%emt 0:05:12]} 35. Ng4 {[%emt 0:01:02] The position is equal.} Qa4 {[%emt 0:02:20]} 36. Nxf6+ {[%emt 0:01:48]} Nxf6 {[%emt 0:00:01]} 37. Rb2 {[%emt 0:01:23][%cal Of3a8]} Kh7 {[%emt 0:02:02]} 38. Rb7 {[%emt 0:02:39]} Qe4 {[%emt 0:01:10]} 39. Qxe4+ {[%emt 0:02:00]} Nxe4 {[%emt 0:00:02]} 40. Rxf7 {[%emt 0:00:21]} Nxg3 {[%emt 0:00:04]} 41. Kxg3 {[%emt 0:00:09]} Rxa3+ {[%emt 0:00:02][%mdl 4096] Endgame. KR-KR} 42. Rf3 {[%emt 0:00:33]} Ra5 {[%emt 0:00:36]} 43. Re3 {[%emt 0:00:18]} Ra6 {[%emt 0:00:34]} 44. Rf3 {[%emt 0:00:41]} Ra5 {[%emt 0:00:06]} 45. h4 {[%emt 0:00:22]} Kg6 {[%emt 0:00:06]} 46. Re3 {[%emt 0:00:19][%cal Bf3e3,Be3b3,Bb3b5][%mdl 32]} Kf6 {[%emt 0:00:06]} 47. f3 {[%emt 0:00:06]} h5 {[%emt 0:00:25]} 48. Rb3 {[%emt 0:00:16]} Ra4 {[%emt 0:01:59]} 49. Rb5 {[%emt 0:00:18]} g6 {[%emt 0:00:14]} 50. Rb8 {[%emt 0:00:25]} Rc4 {[%emt 0:00:19]} 51. Rf8+ {[%emt 0:00:37]} Kg7 {[%emt 0:00:12]} 52. Rf4 {[%emt 0:00:11]} Rc2 {[%emt 0:00:03]} 53. Re4 {[%emt 0:00:09]} Kf6 {[%emt 0:00:06]} 54. Rf4+ $1 {[%emt 0:00:05]} Kg7 {[%emt 0:00:04]} 55. Re4 {[%emt 0:00:06]} Kf6 {[%emt 0:00:04]} 56. Rf4+ $1 {[%emt 0:00:05]} Kg7 {[%emt 0:00:08]} 57. Re4 {[%emt 0:00:04] Weighted Error Value: White=0.07 (flawless) /Black=0.06 (flawless) .  Mistake:       	White=1     	---        Inaccurate:     	White=4     	Black=3      OK:         	White=13    	Black=20     Best:        	White=1     	Black=5      Strong:       	White=3     	---} 1/2-1/2

[Event "Spring Chess Classic A 2024"]
[Site "Saint Louis"]
[Date "2024.04.11"]
[Round "1.2"]
[White "Hakobyan, Aram"]
[Black "Aryan Chopra"]
[Result "1-0"]
[ECO "E92"]
[WhiteElo "2619"]
[BlackElo "2630"]
[Annotator "TA"]
[PlyCount "127"]
[EventDate "2024.04.11"]
[EventCountry "USA"]
[SourceTitle "playchess.com"]
[Source "ChessBase"]
[SourceQuality "1"]
[TimeControl "7200+30"]

{[%evp 61,127,-91,-90,-86,-87,-159,-84,-166,-197,-216,-204,-289,-231,-229,-218,-225,-224,-218,-222,-302,-297,-300,-292,-391,-390,-384,-411,-387,-392,-405,-371,-387,-374,-399,-406,-404,-185,-413,-385,-370,-366,-356,-345,-347,-342,-327,-267,-445,-445,-438,-437,-419,-400,-477,-247,-189,0,0,1456,1287,29991,29992,29992,29993,29993,29994,29996,29997]} 1. d4 {[%emt 0:00:04]} Nf6 {[%emt 0:00:06]} 2. c4 {[%emt 0:00:12]} g6 {[%emt 0:00:05]} 3. Nc3 {[%emt 0:00:11]} Bg7 {[%emt 0:00:04]} 4. e4 {[%emt 0:00:22]} d6 {[%emt 0:00:04]} 5. Nf3 {[%emt 0:00:15]} O-O {[%emt 0:00:07]} 6. Be3 {[%emt 0:00:22]} Na6 {[%emt 0:03:59]} 7. Be2 {[%emt 0:08:01]} e5 {[%emt 0:00:54]} 8. dxe5 {[%emt 0:09:19]} dxe5 {[%emt 0:00:11]} 9. Qc2 {[%emt 0:00:09]} Ng4 {[%emt 0:08:12]} 10. Bg5 {[%emt 0:00:38]} f6 {[%emt 0:00:09]} 11. Rd1 {[%emt 0:00:50]} Qe8 {[%emt 0:06:06]} 12. Bc1 {[%emt 0:00:13]} c6 {[%emt 0:03:38]} 13. h3 {[%emt 0:03:24]} Nh6 {[%emt 0:00:12]} 14. a3 {[%emt 0:04:26]} Nf7 {[%emt 0:03:21]} 15. b4 {[%emt 0:00:46]} Be6 {[%emt 0:08:50]} 16. O-O {[%emt 0:08:39]} Qe7 {[%emt 0:06:01]} 17. b5 {[%emt 0:28:13]} Nb8 {[%emt 0:17:55]} 18. a4 {[%emt 0:02:42]} Nd7 {[%emt 0:18:29]} 19. a5 {[%emt 0:06:04]} Rfc8 {[%emt 0:04:08]} 20. Qb3 {[%emt 0:20:06]} Bf8 {[%emt 0:05:54]} 21. a6 {[%emt 0:19:35]} Nc5 {[%emt 0:03:19]} 22. Qa3 {[%emt 0:00:22]} cxb5 {[%emt 0:09:12]} 23. cxb5 {[%emt 0:01:28]} Nxa6 {[%emt 0:11:36]} 24. Qb2 {[%emt 0:09:44]} Nb4 {[%emt 0:04:40]} 25. Nd5 {[%emt 0:02:12]} Nxd5 {[%emt 0:02:21]} 26. exd5 {[%emt 0:00:02]} Bd7 {[%emt 0:01:25]} 27. Qa2 {[%emt 0:00:48]} Nd6 {[%emt 0:00:56]} 28. Ba3 {[%emt 0:01:01]} Qd8 {[%emt 0:02:42]} 29. Nd2 {[%emt 0:00:52]} Nxb5 {[%emt 0:05:43]} 30. Bxb5 {[%emt 0:00:52]} Bxb5 {[%emt 0:00:05]} 31. d6+ {[%emt 0:00:40]} Kg7 {[%emt 0:00:36]} 32. Rfe1 Ba4 {[%emt 0:01:04]} (32... Bxd6 $2 33. Ne4 Qg8 (33... Bc4 $2 34. Qa1 $18) 34. Qxg8+ Rxg8 35. Rxd6 $18 (35. Nxd6 Bc6 $18)) 33. Rb1 {[%emt 0:00:21]} (33. Nb3 $142) 33... Qd7 {[%emt 0:01:42]} (33... Bxd6 $2 34. Bxd6 Bc6 (34... Qxd6 $2 35. Qxa4 b6 36. Ne4 $18) 35. Qa3 $18) (33... b6 $142 {[%cal Od8d7]} 34. f4 Bxd6 35. Bxd6 Qxd6 36. Qxa4 Qxd2 37. fxe5 fxe5) 34. Rb2 {[%emt 0:03:27]} (34. Ne4 $17) 34... Bc6 {[%emt 0:00:23]} (34... Bxd6 35. Bxd6 Bc6 36. Qa3 $18) 35. Rd1 {[%emt 0:00:57]} Rd8 {[%emt 0:00:57]} (35... Bxd6 36. Nf1 $16) 36. Nf1 {[%emt 0:00:37]} (36. Nc4 {was called for.}) 36... Qf7 {[%emt 0:00:11]} 37. Qa1 {[%emt 0:00:20]} Rd7 {[%emt 0:00:11]} 38. Rbd2 {[%emt 0:00:17]} Rad8 {[%emt 0:00:05]} 39. Bb4 {[%emt 0:00:49]} Qe6 {[%emt 0:01:02]} 40. Qa3 {[%emt 0:00:21]} b6 {[%emt 0:00:10]} 41. Qc3 {[%emt 0:00:24]} Ba4 {[%emt 0:01:29]} (41... Bxd6 $2 42. Qxc6 h6 43. Bxd6 $18 (43. Rxd6 Rxd6 44. Rxd6 Rxd6 $18)) 42. Rb1 {[%emt 0:00:52]} Bxd6 {[%emt 0:00:41]} 43. Bxd6 {[%emt 0:00:27]} Rxd6 {[%emt 0:00:05]} 44. Rxd6 {[%emt 0:00:15]} Rxd6 {[%emt 0:01:32]} ({Resist} 44... Qxd6 45. Qa1 Qd7 46. Rc1 $19) 45. Ra1 {[%emt 0:00:09]} b5 {[%emt 0:00:40]} 46. Ne3 {[%emt 0:00:01]} Rc6 {[%emt 0:00:10]} 47. Qb4 {[%emt 0:00:31]} Qd6 {[%emt 0:00:10]} 48. Qg4 {[%emt 0:00:06]} h5 {[%emt 0:01:02]} (48... Qd2 $142 {And now ...a5 would win.} 49. h4 h5 (49... Rc1+ $2 50. Rxc1 Qxc1+ 51. Kh2 $19)) 49. Qg3 $2 {[%emt 0:00:31]} (49. Nf5+ Kh7 50. Qxa4 bxa4 (50... gxf5 51. Qxb5 Rc7 52. Qe8 $15) 51. Nxd6 Rxd6 52. Rxa4) 49... Kf7 {[%emt 0:00:26]} 50. Qf3 {[%emt 0:00:31]} Qd7 {[%emt 0:01:00]} 51. g4 {[%emt 0:00:12]} hxg4 {[%emt 0:00:17]} 52. hxg4 {[%emt 0:00:04]} Kg7 {[%emt 0:01:15]} 53. g5 {[%emt 0:00:34]} fxg5 {[%emt 0:00:33]} 54. Qg3 $2 {[%emt 0:00:26]} (54. Qg2) 54... Qd4 $19 {[%emt 0:00:19]} 55. Re1 {[%emt 0:00:22]} Qf4 {[%emt 0:00:19]} 56. Qh3 {[%emt 0:00:01]} g4 {[%emt 0:00:34]} 57. Qh4 {[%emt 0:00:42] [#]} g3 {[%emt 0:00:59]} (57... Bb3 $142 $1 58. Qe7+ (58. Qxg4 Qxg4+) 58... Bf7 59. Qxa7 b4) 58. Qe7+ $19 {[%emt 0:00:05]} Kh6 $2 {[%emt 0:00:28]} (58... Kg8 $19 59. Qd8+ Qf8 60. Qd5+ Qf7 61. Qd8+ Kg7 62. fxg3 Qe6) 59. Ng4+ $11 {[%emt 0:00:43]} Kh5 $2 {[%emt 0:00:40][%mdl 8192]} (59... Qxg4 $11 60. Qf8+ Kh5 61. Rxe5+ g5 62. Qh8+ Kg6 63. Qe8+ Kf6 64. Qe7+ Kg6 65. Qe8+ Kf6 66. Qe7+ Kg6 67. Qe8+) 60. f3 $1 $18 {[%emt 0:02:28]} Qd4+ {[%emt 0:00:29] [#]} 61. Kg2 $1 {[%emt 0:00:17]} Rc2+ {[%emt 0:00:24]} 62. Kh3 $1 {[%emt 0:00:01]} (62. Kxg3 $2 {is a self mate.} Qf4+ 63. Kh3 Qxf3#) 62... Rh2+ {[%emt 0:00:10]} 63. Nxh2 {[%emt 0:00:06]} gxh2 {[%emt 0:00:04]} 64. Rxe5+ {[%emt 0:00:17]} 1-0

[Event "Spring Chess Classic A 2024"]
[Site "Saint Louis"]
[Date "2024.04.11"]
[Round "1.3"]
[White "Bok, Benjamin"]
[Black "Swiercz, Dariusz"]
[Result "1/2-1/2"]
[ECO "E04"]
[WhiteElo "2620"]
[BlackElo "2612"]
[Annotator "TA"]
[PlyCount "144"]
[EventDate "2024.04.11"]
[EventCountry "USA"]
[SourceTitle "playchess.com"]
[Source "ChessBase"]
[SourceQuality "1"]
[TimeControl "7200+30"]

{[%evp 91,144,-26,-8,-22,-8,-8,-3,-3,-3,-8,-8,-8,-8,-8,-8,-8,-8,-8,-8,-8,-8,-8,-8,-8,-8,-8,-8,-8,-7,-7,-7,-7,-7,-7,-7,-8,-7,-8,-8,-8,-8,-8,-8,-8,-8,-8,-8,-8,0,-8,0,-8,0,-8,0]} 1. d4 {[%emt 0:00:03]} d5 {[%emt 0:02:25]} 2. c4 {[%emt 0:00:09]} e6 {[%emt 0:00:04]} 3. Nf3 {[%emt 0:00:07]} Nf6 {[%emt 0:00:10]} 4. g3 {[%emt 0:00:06]} dxc4 {[%emt 0:00:27]} 5. Bg2 {[%emt 0:00:07]} a6 {[%emt 0:00:02]} 6. O-O {[%emt 0:00:54]} Nc6 {[%emt 0:00:04]} 7. e3 {[%emt 0:45:37]} Rb8 {[%emt 0:00:25]} 8. Qe2 {[%emt 0:02:48] E04: Open Catalan: 5 Nf3.} b5 {[%emt 0:00:50]} 9. b3 {[%emt 0:00:12]} cxb3 {[%emt 0:00:04]} 10. axb3 {[%emt 0:00:04]} Bd6 {[%emt 0:00:17]} 11. Bb2 {[%emt 0:00:29]} Bb7 {[%emt 0:00:46]} 12. Rc1 {[%emt 0:00:46]} O-O {[%emt 0:01:12]} 13. Ne5 {[%emt 0:14:48]} Nb4 {[%emt 0:00:16]} 14. Bxb7 {[%emt 0:01:06]} Rxb7 {[%emt 0:00:09]} 15. Ba3 {[%emt 0:05:01]} Rb6 {[%emt 0:18:57]} 16. Nd2 {[%emt 0:10:37]} Qa8 $146 {[%emt 0:06:51]} ({Predecessor:} 16... a5 17. Ndf3 Ne4 18. Nd3 Nxd3 19. Qxd3 Qa8 20. d5 b4 21. Bb2 exd5 22. Rd1 Ra6 23. Qxd5 Qxd5 24. Rxd5 {0-1 Pitl,G (2387)-Naiditsch,A (2736) Bundesliga 1819 2018 (5.3)}) 17. Ndf3 {[%emt 0:09:40]} Nc6 {[%emt 0:46:50]} 18. Bc5 {[%emt 0:03:40]} Nxe5 {[%emt 0:01:27]} 19. Nxe5 {[%emt 0:08:39]} Rbb8 {[%emt 0:02:07]} 20. Qf3 {[%emt 0:16:38]} Qxf3 {[%emt 0:05:12]} 21. Nxf3 {[%emt 0:00:11]} Ra8 {[%emt 0:00:02]} 22. Bxd6 {[%emt 0:09:01]} cxd6 {[%emt 0:00:10]} 23. Rc6 {[%emt 0:00:04]} Ne4 {[%emt 0:10:46]} 24. Raxa6 {[%emt 0:00:30]} g5 {[%emt 0:03:18]} 25. h3 {[%emt 0:01:02]} Rxa6 {[%emt 0:03:36]} 26. Rxa6 {[%emt 0:00:01]} Rc8 {[%emt 0:00:07]} 27. Ra2 {[%emt 0:00:18]} Rc3 {[%emt 0:01:47]} 28. Rb2 {[%emt 0:00:49]} Rc1+ {[%emt 0:07:26]} 29. Kg2 {[%emt 0:00:22]} b4 30. d5 {[%emt 0:00:57]} e5 {[%emt 0:07:22]} 31. Nd2 {[%emt 0:00:13]} Nc5 {[%emt 0:00:04]} 32. g4 {[%emt 0:00:45]} e4 {[%emt 0:05:26]} 33. Ra2 {[%emt 0:00:15]} Rd1 {[%emt 0:02:33]} 34. Kg3 {[%emt 0:00:53]} Kf8 {[%emt 0:01:23]} 35. h4 {[%emt 0:00:29]} Rg1+ {[%emt 0:01:25]} 36. Kh2 {[%emt 0:00:37]} Rxg4 {[%emt 0:00:08]} 37. hxg5 {[%emt 0:00:21]} Rxg5 {[%emt 0:00:04]} 38. Ra5 {[%emt 0:00:27]} Ke7 {[%emt 0:02:16]} 39. Rb5 {[%emt 0:00:36]} Rxd5 {[%emt 0:01:05]} 40. Nxe4 {[%emt 0:00:07]} Re5 {[%emt 0:00:16]} 41. Ng3 {[%emt 0:01:00]} Nd3 {[%emt 0:00:24]} 42. Rb7+ {[%emt 0:00:03]} Ke6 {[%emt 0:00:30]} 43. Kg2 {[%emt 0:00:21]} Ra5 {[%emt 0:01:08]} 44. Ne2 {[%emt 0:00:28]} Ra2 {[%emt 0:01:55]} 45. Nf4+ {[%emt 0:00:37]} Nxf4+ {[%emt 0:00:03]} 46. exf4 {[%emt 0:00:00]} Rd2 {[%emt 0:01:01]} 47. Rxb4 {[%emt 0:00:21]} Rd3 {[%emt 0:00:04]} 48. Rb5 {[%emt 0:01:06]} d5 {[%emt 0:00:16]} 49. Rb6+ {[%emt 0:00:46]} Kf5 {[%emt 0:00:01]} 50. Rb7 {[%emt 0:00:09]} f6 {[%emt 0:00:38]} 51. Rxh7 {[%emt 0:00:57]} Rxb3 {[%emt 0:00:05]} 52. Rd7 {[%emt 0:00:20]} Ke4 {[%emt 0:02:02]} 53. f3+ {[%emt 0:00:15]} Rxf3 {[%emt 0:00:31]} 54. Rxd5 $1 {[%emt 0:00:13]} Rxf4 {[%emt 0:00:30]} 55. Ra5 {[%emt 0:00:28]} Rg4+ {[%emt 0:00:27]} 56. Kf2 {[%emt 0:00:08]} Kf4 {[%emt 0:00:04]} 57. Rb5 {[%emt 0:01:23]} Rg8 {[%emt 0:00:43]} 58. Rb4+ {[%emt 0:00:15]} Kg5 {[%emt 0:00:05]} 59. Kf3 {[%emt 0:00:20]} Ra8 {[%emt 0:00:03]} 60. Rg4+ {[%emt 0:00:14]} Kf5 {[%emt 0:00:04]} 61. Rf4+ {[%emt 0:00:03]} Kg6 {[%emt 0:00:15]} 62. Rg4+ {[%emt 0:00:06]} Kf7 {[%emt 0:00:08]} 63. Rb4 {[%emt 0:00:30]} Ra5 {[%emt 0:00:04]} 64. Rb7+ {[%emt 0:00:35]} Kg6 {[%emt 0:00:04]} 65. Rb4 $1 {[%emt 0:00:10]} Ra3+ {[%emt 0:00:15]} 66. Kf2 {[%emt 0:00:18]} Kg5 {[%emt 0:00:06]} 67. Rc4 {[%emt 0:00:07]} f5 {[%emt 0:00:02]} 68. Rb4 {[%emt 0:00:10]} Ra2+ {[%emt 0:00:42]} 69. Kf3 {[%emt 0:00:08]} Ra3+ {[%emt 0:00:01]} 70. Kf2 $1 {[%emt 0:00:05]} Ra2+ {[%emt 0:00:02]} 71. Kf3 {[%emt 0:00:04]} Ra3+ {[%emt 0:00:02]} 72. Kf2 {[%emt 0:00:05]} Ra2+ {[%emt 0:00:01]} 1/2-1/2

[Event "Spring Chess Classic A 2024"]
[Site "Saint Louis"]
[Date "2024.04.11"]
[Round "1.4"]
[White "Ter-Sahakyan, Samvel"]
[Black "Antipov, Mikhail Al."]
[Result "0-1"]
[ECO "C65"]
[WhiteElo "2644"]
[BlackElo "2574"]
[Annotator "TA"]
[PlyCount "88"]
[EventDate "2024.04.11"]
[EventCountry "USA"]
[SourceTitle "playchess.com"]
[Source "ChessBase"]
[SourceQuality "1"]
[TimeControl "7200+30"]

{[%evp 26,88,-31,-74,0,0,0,6,1,0,-1,0,0,-30,-25,-73,0,-78,-77,-197,-70,-83,-93,-83,-81,-75,-64,-62,-59,-63,-71,-59,0,-99,-99,-118,-94,-104,-114,-77,-55,-83,-85,-221,-201,-214,-120,-133,-133,-713,-705,-702,-702,-733,-541,-912,-906,-1035,-1038,-1109,-1097,-1189,-1081,-1683,-1635]} 1. e4 {[%emt 0:00:13]} e5 {[%emt 0:00:19]} 2. Nf3 {[%emt 0:00:04]} Nc6 {[%emt 0:00:03]} 3. Bb5 {[%emt 0:00:14]} Nf6 {[%emt 0:00:06]} 4. d3 {[%emt 0:00:19]} Ne7 {[%emt 0:00:06]} 5. Nc3 {[%emt 0:04:33]} c6 {[%emt 0:00:08]} 6. Bc4 {[%emt 0:00:16] C65: Ruy Lopez: Berlin Defence (3...Nf6), unusual lines and 4 0-0 Bc5.} d6 {[%emt 0:00:08] 6...Ng6 is vanishing.} 7. d4 {[%emt 0:06:37]} exd4 {[%emt 0:00:13]} 8. Qxd4 {[%emt 0:00:17]} Ng6 {[%emt 0:00:06]} 9. h4 {[%emt 0:10:49]} Bg4 {[%emt 0:14:44]} 10. Ng5 {[%emt 0:13:54]} Ne5 {[%emt 0:01:06]} 11. Bb3 $146 {[%emt 0:00:41]} ({Predecessor:} 11. Bf4 Qc7 12. f3 Nxc4 13. Qxc4 h6 14. fxg4 hxg5 15. Bxg5 Nxg4 16. O-O-O Ne5 17. Qd4 {½-½ Tobor,M (2366)-Gulbis,H (2349) EU-ch 2019 sf06 email}) 11... h6 {[%emt 0:03:50]} 12. f4 {[%emt 0:08:41]} hxg5 {[%emt 0:02:35]} 13. fxe5 {[%emt 0:00:19]} Nd7 {[%emt 0:18:52]} 14. exd6 {[%emt 0:13:53]} f6 {[%emt 0:03:32]} ({Black should play} 14... Qf6 $17 15. Qe3 (15. Qxf6 gxf6 16. e5 gxh4 $17) 15... Qxd6 (15... gxh4 $2 16. Rf1 $18) 16. Qxg5 Qg3+ 17. Kf1 f6) 15. Bxg5 $1 $11 {[%emt 0:17:54]} fxg5 {[%emt 0:09:05]} 16. e5 {[%emt 0:01:05]} Qa5 $1 {[%emt 0:09:58]} 17. e6 {[%emt 0:15:53]} Nf6 {[%emt 0:19:27]} 18. e7 $1 {[%emt 0:05:09]} Bxe7 $1 {[%emt 0:01:55]} 19. dxe7 {[%emt 0:03:09]} (19. Qe3 $5 Qd8 20. dxe7 Qxe7 21. Qxe7+ Kxe7 22. O-O gxh4 (22... Rxh4 23. Rae1+ Kd6 24. Ne4+ Nxe4 25. Rxe4 $11) 23. Rae1+ Kd6 24. Ne4+ Nxe4 25. Rxe4 $11) 19... Rxh4 {[%emt 0:07:02]} 20. Kd2 {[%emt 0:15:59] [#]} (20. Rxh4 $11 gxh4 21. Kf2) 20... Bh3 {[%emt 0:29:10]} (20... Kxe7 $2 21. Rae1+ $18 (21. Rhe1+ Be2 $18) (21. Rhe1+ Be2 $18)) (20... Qb6 $1 $17 21. Qxb6 axb6) 21. Qe3 {[%emt 0:05:38]} (21. g4 $1 $11 Qb6 (21... Bxg4 22. Rag1 $11) (21... Rxg4 $2 {loses.} 22. Qd3 $18) 22. Qc4 Qf2+ 23. Ne2 (23. Kc1 Qf4+ 24. Qxf4 gxf4 $17)) 21... Bxg2 $17 {[%emt 0:00:59]} 22. Rhe1 {[%emt 0:02:16]} (22. Rhg1 $17 {is a better defense.} Ne4+ 23. Kc1) 22... Re4 {[%emt 0:02:14]} (22... Ne4+ $1 $19 23. Kc1 Qe5) 23. Qf2 {[%emt 0:02:02]} Qb4 {[%emt 0:02:41]} 24. Rad1 {[%emt 0:01:44]} Rxe1 {[%emt 0:01:37]} 25. Rxe1 {[%emt 0:00:14]} Qd6+ {[%emt 0:00:09]} 26. Kc1 {[%emt 0:00:31]} Qf4+ {[%emt 0:00:04]} 27. Qd2 {[%emt 0:00:13]} Bf3 {[%emt 0:03:10]} 28. Re3 {[%emt 0:00:43]} g4 {[%emt 0:00:08]} (28... Ng4 $1 $15 29. Re6 Qxd2+ 30. Kxd2 Nf6) 29. Bf7+ {[%emt 0:01:03]} (29. Qf2 $1 $11 {keeps the balance.}) 29... Kxf7 $17 {[%emt 0:00:02]} 30. e8=Q+ {[%emt 0:00:05]} Rxe8 {[%emt 0:00:03]} 31. Re7+ {[%emt 0:00:06]} Rxe7 {[%emt 0:00:05]} 32. Qxf4 {[%emt 0:00:04]} Kg6 {[%emt 0:00:11]} 33. a4 {[%emt 0:00:54]} Re6 {[%emt 0:01:56]} 34. a5 {[%emt 0:00:43]} (34. Qc4 $17 Re5 35. Qd3+ Rf5 36. Qd6) 34... Nh5 $19 {[%emt 0:00:26]} 35. Qd4 {[%emt 0:00:12] [#]} c5 {[%emt 0:01:13]} ({Better is} 35... a6 $1 $19 36. b3 (36. Qd7 Nf4) 36... Kh6) 36. Qd7 $17 {[%emt 0:01:10]} Nf4 {[%emt 0:00:25]} 37. Qc7 $2 {[%emt 0:00:39][%mdl 8192]} (37. Qd2 $17 Kf5 38. Qf2) 37... Rf6 $19 {[%emt 0:00:09]} 38. Qxc5 {[%emt 0:00:40]} g3 {[%emt 0:00:08]} 39. b4 {[%emt 0:00:31]} g2 {[%emt 0:00:18]} 40. Qe3 {[%emt 0:00:03]} Kf5 {[%emt 0:01:23]} 41. Kb2 {[%emt 0:00:29]} Re6 {[%emt 0:00:30]} 42. Qc5+ {[%emt 0:00:58]} Kg4 {[%emt 0:00:10]} 43. a6 {[%emt 0:00:27]} bxa6 {[%emt 0:00:10]} 44. Qxa7 {[%emt 0:00:06]} g5 {[%emt 0:00:05]} 0-1